{"text_format":"1","workbook":"xlsx","n_sheets":2,"sheets":["Formularz","Wyjaśnienia"],"not_rendered":{"charts":0,"images":0,"macros":0,"external_links":0,"defined_names":1,"comments":0,"pivot_tables":0},"unopened":[],"bounds":{"document_bytes":16777216,"sheet_cells":100000,"rows_first":2000,"rows_last":500,"rows_between":2000,"halvings":0,"cell_chars":16384,"cell_head_chars":4096},"cells_cut":0,"cells_raw":0,"read":"whole","date_system":"1900"}

{"sheet":"Formularz","index":0,"n_rows":65,"n_cols":11,"rows_kept":65,"cut":false,"hidden":false,"merged":[[10,0,10,2],[0,0,0,10],[1,0,1,10],[4,0,5,2],[6,0,8,2],[4,3,10,6],[4,7,10,10],[9,0,9,2],[12,0,12,2],[12,3,12,4],[12,5,12,6],[12,7,12,8],[11,0,11,2],[11,3,11,4],[11,5,11,6],[11,7,11,8],[14,0,14,2],[14,3,14,4],[14,5,14,6],[14,7,14,8],[13,0,13,2],[13,3,13,4],[13,5,13,6],[13,7,13,8],[16,0,16,2],[16,3,16,4],[16,5,16,6],[16,7,16,8],[15,0,15,2],[15,3,15,4],[15,5,15,6],[15,7,15,8],[18,0,18,2],[18,3,18,4],[18,5,18,6],[18,7,18,8],[17,0,17,2],[17,3,17,4],[17,5,17,6],[17,7,17,8],[20,0,20,2],[20,3,20,4],[20,5,20,6],[20,7,20,8],[19,0,19,2],[19,3,19,4],[19,5,19,6],[19,7,19,8],[22,0,22,2],[22,3,22,4],[22,5,22,6],[22,7,22,8],[21,0,21,2],[21,3,21,4],[21,5,21,6],[21,7,21,8],[24,0,24,2],[24,3,24,4],[24,5,24,6],[24,7,24,8],[23,0,23,2],[23,3,23,4],[23,5,23,6],[23,7,23,8],[26,0,26,2],[26,3,26,4],[26,5,26,6],[26,7,26,8],[25,0,25,2],[25,3,25,4],[25,5,25,6],[25,7,25,8],[28,0,28,2],[28,3,28,4],[28,5,28,6],[28,7,28,8],[27,0,27,2],[27,3,27,4],[27,5,27,6],[27,7,27,8],[31,0,31,3],[33,0,33,10],[34,0,34,10],[35,0,35,10],[29,0,29,2],[29,3,29,6],[29,7,29,10],[30,0,30,2],[30,3,30,6],[30,7,30,9],[44,0,44,2],[44,3,44,10],[45,0,45,2],[45,3,45,10],[36,0,36,10],[39,0,40,2],[39,3,40,6],[39,7,43,10],[41,3,43,6],[41,0,43,2],[48,0,48,2],[48,3,48,10],[49,0,49,2],[49,3,49,10],[46,0,46,2],[46,3,46,10],[47,0,47,2],[47,3,47,10],[52,0,52,2],[52,3,52,10],[50,0,50,2],[50,3,50,10],[51,0,51,2],[51,3,51,10],[63,0,63,10],[64,0,64,10],[60,0,60,2],[60,3,60,6],[60,7,60,10],[61,0,61,3],[61,7,61,10],[53,0,53,2],[53,3,53,10],[57,0,57,2],[57,3,57,10],[59,0,59,2],[59,3,59,6],[59,7,59,10],[55,0,55,2],[55,3,55,10],[56,0,56,2],[56,3,56,10]]}
["INFORMACJA O STANIE MIENIA KOMUNALNEGO"]
["MIASTA POZNANIA NA DZIEŃ 31 GRUDNIA 2011 R."]
["Tab. nr 1"]
[]
["Nazwa i adres jednostki sprawozdawczej - pieczęć",null,null,"AKTYWA TRWAŁE",null,null,null,"Urząd Miasta Poznania \nWydział Gospodarki Nieruchomościami\nul. Gronowa 20\n61-655 Poznań"]
[]
["PRZEDSZKOLE NR 174                             \"KRÓLEWNA     ŚNIEŻKA \"                                                                     OS. JANA III SOBIESKIEGO 108                                     60-688 POZNAŃ"]
[]
[]
["Forma organizacyjno-prawna"]
["Jednostki budżetowe"]
["Nazwa i symbol klasyfikacji rodzajowej",null,null,"Wartość brutto \n(w zł)",null,"Wartość umorzenia \n(w zł)",null,"Wartość netto \n(w zł)",null,"Ilość","Jm"]
["Grunty \n(konto 011 - gr. 0)",null,null,1347808,null,null,null,{"$f":"D13-F13","v":1347808},null,null,"dz."]
["Budynki i lokale \n(konto 011 - gr. 1)",null,null,654965,null,257581,null,{"$f":"D14-F14","v":397384},null,1,"szt."]
["Obiekty inżynierii lądowej \ni wodnej (konto 011 - gr. 2)",null,null,62319,null,53523,null,8796,null,null,"szt."]
["Maszyny i urządzenia techniczne \n(konto 011 - gr. 3-6)",null,null,null,null,null,null,0,null,null,"szt."]
["Środki transportu \n(konto 011 - gr. 7)",null,null,null,null,null,null,0,null,null,"szt."]
["Narzędzia, przyrządy, ruchomości \ni wyposażenie (konto 011 - gr. 8)",null,null,25997,null,17840,null,8157]
["Inwentarz żywy \n(konto 011 - gr. 9)",null,null,null,null,null,null,0]
["Pozostałe środki trwałe \n(konto 013)",null,null,192845,null,{"$f":"D20","v":192845},null,0]
["Zbiory biblioteczne                        (konto 014)",null,null,null,null,{"$f":"D21","v":0},null,0]
["Mienie zlikwidowanych jednostek \n(konto 015)",null,null,null,null,null,null,{"$f":"D22-F22","v":0}]
["Dobra kultury \n(konto 016)",null,null,null,null,0,null,{"$f":"D23-F23","v":0}]
["Uzbrojenie i sprzęt wojskowy\n(konto 017)",null,null,null,null,null,null,0]
["Wartości niematerialne i prawne (konto 020)",null,null,7794,null,7794,null,0]
["Długoterminowe aktywa finansowe      (konto 030)",null,null,null,null,0,null,0]
["Inwestycje - środki trwałe w budowie        (konto 080,081,082,083)",null,null,null,null,0,null,{"$f":"D27-F27","v":0}]
["Należności długoterminowe\n(konto 226)",null,null,null,null,0,null,0]
["AKTYWA TRWAŁE RAZEM",null,null,{"$f":"SUM(D13:E28)","v":2291728},null,{"$f":"SUM(F13:G28)","v":529583},null,{"$f":"SUM(H13:I28)","v":1762145}]
[]
["Pieczątka imienna i podpis Gł. Księgowego",null,null,"Sporządził dnia",null,null,null,"Pieczątka imienna i podpis"]
["Nr telefonu, pod którym można uzyskać wyjaśnienia",null,null,null,null,null,null,null,"dyrektora/kierownika jednostki"]
[]
["OSTATECZNY TERMIN NADSYŁANIA SPRAWOZDAŃ - 28 LUTEGO 2012 R."]
["(zgodnie z Zarządzeniem nr 975/2010/P Prezydenta Miasta Poznania z dnia 27 grudnia 2010r.)"]
["INFORMACJA O STANIE MIENIA KOMUNALNEGO"]
["MIASTA POZNANIA NA DZIEŃ 31 GRUDNIA 2011r."]
["Tab. nr 1.1"]
[]
["Nazwa i adres jednostki sprawozdawczej - pieczęć",null,null,"AKTYWA OBROTOWE",null,null,null,"Urząd Miasta Poznania \nWydział Gospodarki Nieruchomościami\nul. Gronowa 20\n61-655 Poznań"]
[]
[{"$f":"IF(A7=\"\",\"\",A7)","v":"PRZEDSZKOLE NR 174                             \"KRÓLEWNA     ŚNIEŻKA \"                                                                     OS. JANA III SOBIESKIEGO 108                                     60-688 POZNAŃ"},null,null,"(wartość składników majątkowych będących własnością Miasta Poznania, na stanie miejskich jednostek organizacyjnych i komunalnych osób prawnych)"]
[]
[]
["Nazwa dla pozycji 1-5",null,null,"Wartość (w zł)"]
["1.   Zapasy",null,null,9368]
["2.   Należności krótkoterminowe",null,null,17638]
["3.   Środki pieniężne\n      (suma 3.1+3.2+3.3)",null,null,{"$f":"SUM(D49:I51)","v":6837}]
["3.1 Środki pieniężne w kasie"]
["3.2 Środki pieniężne na \n      rachunkach bankowych",null,null,6837]
["3.3 Środki pieniężne - inne"]
["4.   Krótkoterminowe papiery\n      wartościowe"]
["5.   Rozliczenia międzyokresowe"]
["AKTYWA OBROTOWE RAZEM",null,null,{"$f":"SUM(D46:I47,D49:I53)","v":33843}]
[]
["Aktywa trwałe netto",null,null,{"$f":"H29","v":1762145}]
["Aktywa obrotowe",null,null,{"$f":"D54","v":33843}]
["SUMA AKTYWÓW",null,null,{"$f":"SUM(D56:I57)","v":1795988}]
[]
["Mariola Galica 618235-299",null,null,"24.02.2012 r.",null,null,null,"Barbara Kina-Wrońska"]
["Pieczątka imienna i podpis Gł. Księgowego",null,null,"Sporządził dnia",null,null,null,"Pieczątka imienna i podpis"]
["Nr telefonu, pod którym można uzyskać wyjaśnienia",null,null,null,null,null,null,"dyrektora/kierownika jednostki"]
[]
["OSTATECZNY TERMIN NADSYŁANIA SPRAWOZDAŃ - 28 LUTEGO 2012 R."]
["(zgodnie z Zarządzeniem nr 975/2010/P Prezydenta Miasta Poznania z dnia 27 grudnia 2010r.)"]

{"sheet":"Wyjaśnienia","index":1,"n_rows":25,"n_cols":4,"rows_kept":25,"cut":false,"hidden":false,"merged":[[2,3,4,3],[2,0,4,0],[23,1,23,2],[1,1,1,2],[2,1,4,2]]}
["Tab. nr 2"]
["Nazwa i adres jednostki sprawozdawczej\n(wraz z pieczecią)","Informacja o stanie mienia komunalnego\nMiasta Poznania na dzień 31-12-2011 r.",null,"Urząd Miasta Poznania"]
[{"$f":"IF(Formularz!A7=\"\",\"\",Formularz!A7)","v":"PRZEDSZKOLE NR 174                             \"KRÓLEWNA     ŚNIEŻKA \"                                                                     OS. JANA III SOBIESKIEGO 108                                     60-688 POZNAŃ"},"WYJAŚNIENIA ZMIAN WARTOŚCI MAJĄTKU\n(Aktywa trwałe)",null,"Wydział Gospodarki Nieruchomościami\nul. Gronowa 20\n61-655 Poznań"]
[]
[]
["Wyszczególnienie","Wartość brutto\nwg stanu na\n31-12-2010 r. [w zł]","Wartość brutto\nwg stanu na\n31-12-2011 r. [w zł]","Wyjaśnienia zmian (zmniejszenia, zwiększenia)"]
["Grunty\n(konto 011 - grupa 0)",0,{"$f":"IF(Formularz!D13=\"\",\"\",Formularz!D13)","v":1347808}]
["Budynki i lokale\n(konto 011 - grupa 1)",654965,{"$f":"IF(Formularz!D14=\"\",\"\",Formularz!D14)","v":654965}]
["Obiekty inżynierii lądowej i wodnej\n(konto 011 - grupa 2)",62319,{"$f":"IF(Formularz!D15=\"\",\"\",Formularz!D15)","v":62319}]
["Maszyny i urządzenia techniczne\n(konto 011 - grupa 3 do 6)",null,{"$f":"IF(Formularz!D16=\"\",\"\",Formularz!D16)","v":""}]
["Środki transportu\n(konto 011 - grupa 7)",null,{"$f":"IF(Formularz!D17=\"\",\"\",Formularz!D17)","v":""}]
["Narzedzia, przyrządy, ruchomości\ni wyposażenie (konto 011 - grupa 8)",19497,{"$f":"IF(Formularz!D18=\"\",\"\",Formularz!D18)","v":25997},"zakup zmywarki"]
["Inwentarz żywy\n(konto 011 - grupa 9)",null,{"$f":"IF(Formularz!D19=\"\",\"\",Formularz!D19)","v":""}]
["Pozostałe środki trwałe\n(konto 013)",167065,{"$f":"IF(Formularz!D20=\"\",\"\",Formularz!D20)","v":192845},"zakup młynka koloidalnego, odkurzaczy, mebli kuchennych,zestawów zabawowych dla dzieci, bujaków"]
["Zbiory biblioteczne\n(konto 014)",null,{"$f":"IF(Formularz!D21=\"\",\"\",Formularz!D21)","v":""}]
["Mienie zlikwidowanych jednostek\n(konto 015)",null,{"$f":"IF(Formularz!D22=\"\",\"\",Formularz!D22)","v":""}]
["Dobra kultury\n(konto 016)",null,{"$f":"IF(Formularz!D23=\"\",\"\",Formularz!D23)","v":""}]
["Uzbrojenie i sprzęt wojskowy\n(konto 017)",null,{"$f":"IF(Formularz!D24=\"\",\"\",Formularz!D24)","v":""}]
["Wartości niematerialne i prawne\n(konto 020)",7239,{"$f":"IF(Formularz!D25=\"\",\"\",Formularz!D25)","v":7794},"zakup oprogramowania dla intendenta"]
["Długoterminowe aktywa finansowe\n(konto 030)",null,{"$f":"IF(Formularz!D26=\"\",\"\",Formularz!D26)","v":""}]
["Inwestycje - środki trwałe w budowie\n(konto 080)",null,{"$f":"IF(Formularz!D27=\"\",\"\",Formularz!D27)","v":""}]
["Należności długoterminowe\n(konto 226)",null,{"$f":"IF(Formularz!D28=\"\",\"\",Formularz!D28)","v":""}]
["R A Z E M",{"$f":"SUM(B7:B22)","v":911085},{"$f":"SUM(C7:C22)","v":2291728}]
["Nr telefonu, pod którym można uzyskać","Sporządził dnia",null,"Pieczątka imienna i podpis osoby"]
["wyjaśnienia dotyczące sprawozdania",null,null,"działającej w imieniu sprawozdawcy"]